[Event "Titled Tuesday Blitz February 07 Late 2023"]
[White "Rosenberg, Evan S"]
[Black "Wang, Jalen"]
[WhiteFideId "2019299"]
[BlackFideId "2078058"]
[WhiteElo "1956"]
[BlackElo "2136"]
[Result "0-1"]
[Round "04"]
[TimeControl "180+2"]
[Date "2023.02.07"]
[WhiteClock "0:00:05"]
[BlackClock "0:00:47"]

1. d4 {[%clk 0:03:00]}  f5 {[%clk 0:02:55]} 2. Bg5 {[%clk 0:02:59]}  g6 {[%clk 0:02:53]} 3. e3 {[%clk 0:02:59]}  Bg7 {[%clk 0:02:53]} 4. Nc3 {[%clk 0:02:55]}  Nf6 {[%clk 0:02:54]} 5. Bc4 {[%clk 0:02:53]}  e6 {[%clk 0:02:53]} 6. h4 {[%clk 0:02:47]}  h6 {[%clk 0:02:52]} 7. Bxf6 {[%clk 0:02:43]}  Qxf6 {[%clk 0:02:52]} 8. Nge2 {[%clk 0:02:37]}  d5 {[%clk 0:02:51]} 9. Bd3 {[%clk 0:02:35]}  c6 {[%clk 0:02:52]} 10. Nf4 {[%clk 0:02:34]}  O-O {[%clk 0:02:51]} 11. h5 {[%clk 0:02:34]}  g5 {[%clk 0:02:52]} 12. Ng6 {[%clk 0:02:34]}  Re8 {[%clk 0:02:52]} 13. g4 {[%clk 0:02:29]}  Nd7 {[%clk 0:02:51]} 14. Qe2 {[%clk 0:01:57]}  Nf8 {[%clk 0:02:49]} 15. Ne5 {[%clk 0:01:56]}  Qe7 {[%clk 0:02:40]} 16. O-O-O {[%clk 0:01:52]}  Bxe5 {[%clk 0:02:39]} 17. dxe5 {[%clk 0:01:52]}  Qg7 {[%clk 0:02:37]} 18. f4 {[%clk 0:01:52]}  Kh8 {[%clk 0:02:32]} 19. Rdg1 {[%clk 0:01:50]}  b5 {[%clk 0:02:32]} 20. Qd2 {[%clk 0:01:46]}  b4 {[%clk 0:02:31]} 21. Ne2 {[%clk 0:01:46]}  c5 {[%clk 0:02:31]} 22. gxf5 {[%clk 0:01:39]}  exf5 {[%clk 0:02:30]} 23. Ng3 {[%clk 0:01:37]}  Qf7 {[%clk 0:02:19]} 24. fxg5 {[%clk 0:01:32]}  hxg5 {[%clk 0:02:20]} 25. Qf2 {[%clk 0:01:22]}  Rxe5 {[%clk 0:02:18]} 26. e4 {[%clk 0:01:23]}  f4 {[%clk 0:02:18]} 27. exd5 {[%clk 0:01:18]}  Qxd5 {[%clk 0:02:07]} 28. h6 {[%clk 0:01:17]}  Be6 {[%clk 0:02:00]} 29. b3 {[%clk 0:00:59]}  Rd8 {[%clk 0:01:56]} 30. Nh5 {[%clk 0:00:50]}  Re3 {[%clk 0:01:44]} 31. Nxf4 {[%clk 0:00:34]}  Qe5 {[%clk 0:01:44]} 32. Rxg5 {[%clk 0:00:15]}  Qxg5 {[%clk 0:01:08]} 33. Qxe3 {[%clk 0:00:15]}  Qf6 {[%clk 0:01:05]} 34. Nxe6 {[%clk 0:00:12]}  Nxe6 {[%clk 0:01:03]} 35. Rf1 {[%clk 0:00:11]}  Qa1+ {[%clk 0:01:03]} 36. Kd2 {[%clk 0:00:11]}  Qc3+ {[%clk 0:00:56]} 37. Kc1 {[%clk 0:00:11]}  Qa1+ {[%clk 0:00:56]} 38. Kd2 {[%clk 0:00:11]}  Qxf1 {[%clk 0:00:51]} 39. Qe5+ {[%clk 0:00:06]}  Kg8 {[%clk 0:00:52]} 40. Qxe6+ {[%clk 0:00:05]}  Qf7 {[%clk 0:00:52]} 41. h7+ {[%clk 0:00:05]}  Kg7 {[%clk 0:00:52]} 42. Qxf7+ {[%clk 0:00:04]}  Kxf7 {[%clk 0:00:53]} 43. Ke3 {[%clk 0:00:03]}  Ke6 {[%clk 0:00:53]} 44. Ke4 {[%clk 0:00:01]}  Rd4+ {[%clk 0:00:53]} 45. Ke3 {[%clk 0:00:01]}  Rh4 {[%clk 0:00:54]} 46. Kd2 {[%clk 0:00:01]}  Ke5 {[%clk 0:00:53]} 47. Kc1 {[%clk 0:00:01]}  Kd4 {[%clk 0:00:54]} 48. Kb2 {[%clk 0:00:02]}  a5 {[%clk 0:00:54]} 49. Bg6 {[%clk 0:00:02]}  Rh6 {[%clk 0:00:52]} 50. Bd3 {[%clk 0:00:02]}  Rh3 {[%clk 0:00:52]} 51. a3 {[%clk 0:00:02]}  Rh2 {[%clk 0:00:51]} 52. axb4 {[%clk 0:00:03]}  axb4 {[%clk 0:00:52]} 53. Bg6 {[%clk 0:00:03]}  Ke5 {[%clk 0:00:50]} 54. Bd3 {[%clk 0:00:04]}  Kf6 {[%clk 0:00:50]} 55. Be4 {[%clk 0:00:04]}  Rh4 {[%clk 0:00:48]} 56. Bd3 {[%clk 0:00:05]}  Kg7 {[%clk 0:00:49]} 57. Kc1 {[%clk 0:00:05]}  Rh2 {[%clk 0:00:48]} 58. Kb2 {[%clk 0:00:05]}  Kf6 {[%clk 0:00:46]} 59. Kc1 {[%clk 0:00:06]}  Ke5 {[%clk 0:00:45]} 60. Kb2 {[%clk 0:00:06]}  Kd4 {[%clk 0:00:46]} 61. Kc1 {[%clk 0:00:07]}  Kc3 {[%clk 0:00:46]} 62. Kd1 {[%clk 0:00:07]}  Rh3 {[%clk 0:00:41]} 63. Ke2 {[%clk 0:00:07]}  Kd4 {[%clk 0:00:41]} 64. Kf2 {[%clk 0:00:07]}  c4 {[%clk 0:00:38]} 65. Bxc4 {[%clk 0:00:05]}  Rxh7 {[%clk 0:00:38]} 66. Bd3 {[%clk 0:00:05]}  Rh2+ {[%clk 0:00:38]} 67. Kf3 {[%clk 0:00:05]}  Kc3 {[%clk 0:00:39]} 68. Ke3 {[%clk 0:00:05]}  Rh3+ {[%clk 0:00:38]} 69. Ke4 {[%clk 0:00:05]}  Rxd3 {[%clk 0:00:38]} 70. cxd3 {[%clk 0:00:05]}  Kxb3 {[%clk 0:00:39]} 71. d4 {[%clk 0:00:05]}  Kc3 {[%clk 0:00:39]} 72. d5 {[%clk 0:00:05]}  b3 {[%clk 0:00:40]} 73. d6 {[%clk 0:00:06]}  b2 {[%clk 0:00:41]} 74. d7 {[%clk 0:00:05]}  b1=Q+ {[%clk 0:00:42]} 75. Kd5 {[%clk 0:00:05]}  Qb8 {[%clk 0:00:43]} 76. Kc6 {[%clk 0:00:03]}  Qd8 {[%clk 0:00:44]} 77. Kd6 {[%clk 0:00:03]}  Kd4 {[%clk 0:00:45]} 78. Kc6 {[%clk 0:00:04]}  Ke5 {[%clk 0:00:45]} 79. Kc5 {[%clk 0:00:02]}  Ke6 {[%clk 0:00:46]} 80. Kc6 {[%clk 0:00:03]}  Qxd7+ {[%clk 0:00:47]} 81. Kb6 {[%clk 0:00:03]}  Qc8 {[%clk 0:00:47]} 82. Ka7 {[%clk 0:00:03]}  Kd5 {[%clk 0:00:45]} 83. Kb6 {[%clk 0:00:04]}  Qc6+ {[%clk 0:00:45]} 84. Ka7 {[%clk 0:00:04]}  Qb5 {[%clk 0:00:46]} 85. Ka8 {[%clk 0:00:04]}  Kc6 {[%clk 0:00:46]} 86. Ka7 {[%clk 0:00:05]}  Qb7# {[%clk 0:00:47]} 0-1


[Site "https://www.chess.com"]

[Event "Titled Tuesday Blitz February 07 Late 2023"]
[White "Cardoso Cardoso, Jose Gabriel"]
[Black "Jorajuria Mendoza, Algol"]
[WhiteFideId "4430492"]
[BlackFideId "5128897"]
[WhiteElo "2492"]
[BlackElo "2069"]
[Result "1-0"]
[Round "04"]
[TimeControl "180+2"]
[Date "2023.02.07"]
[WhiteClock "0:02:45"]
[BlackClock "0:01:09"]

1. c4 {[%clk 0:03:00]}  e5 {[%clk 0:02:58]} 2. Nc3 {[%clk 0:03:00]}  Nf6 {[%clk 0:02:58]} 3. g3 {[%clk 0:03:01]}  g6 {[%clk 0:02:58]} 4. Bg2 {[%clk 0:03:01]}  Bg7 {[%clk 0:02:58]} 5. d3 {[%clk 0:03:02]}  O-O {[%clk 0:02:58]} 6. e4 {[%clk 0:03:01]}  c6 {[%clk 0:02:53]} 7. Nge2 {[%clk 0:03:00]}  d6 {[%clk 0:02:31]} 8. h3 {[%clk 0:03:00]}  Be6 {[%clk 0:02:21]} 9. O-O {[%clk 0:03:00]}  d5 {[%clk 0:02:21]} 10. exd5 {[%clk 0:03:01]}  cxd5 {[%clk 0:02:21]} 11. Bg5 {[%clk 0:03:02]}  Qd7 {[%clk 0:02:05]} 12. Bxf6 {[%clk 0:02:59]}  Bxf6 {[%clk 0:02:05]} 13. Nxd5 {[%clk 0:02:59]}  Bxd5 {[%clk 0:02:00]} 14. Bxd5 {[%clk 0:02:59]}  Nc6 {[%clk 0:01:56]} 15. Kh2 {[%clk 0:02:59]}  Rad8 {[%clk 0:01:55]} 16. Nc3 {[%clk 0:02:48]}  Nd4 {[%clk 0:01:47]} 17. Bg2 {[%clk 0:02:48]}  b6 {[%clk 0:01:37]} 18. Nd5 {[%clk 0:02:45]}  Bg5 {[%clk 0:01:32]} 19. Re1 {[%clk 0:02:44]}  Rfe8 {[%clk 0:01:30]} 20. h4 {[%clk 0:02:45]}  Be7 {[%clk 0:01:20]} 21. Rxe5 {[%clk 0:02:45]}  Bd6 {[%clk 0:01:09]} 22. Nf6+ {[%clk 0:02:45]} 1-0


[Site "https://www.chess.com"]

[Event "Titled Tuesday Blitz February 07 Late 2023"]
[White "Prieto Aranguren, Alain"]
[Black "Nefedov, Sergey"]
[WhiteFideId "2268906"]
[BlackFideId "24113417"]
[WhiteElo "2258"]
[BlackElo "2300"]
[Result "0-1"]
[Round "04"]
[TimeControl "180+2"]
[Date "2023.02.07"]
[WhiteClock "0:00:12"]
[BlackClock "0:00:36"]

1. d4 {[%clk 0:02:55]}  Nf6 {[%clk 0:02:59]} 2. c4 {[%clk 0:02:54]}  e6 {[%clk 0:02:59]} 3. Nc3 {[%clk 0:02:54]}  d5 {[%clk 0:02:59]} 4. cxd5 {[%clk 0:02:53]}  exd5 {[%clk 0:02:59]} 5. Bg5 {[%clk 0:02:53]}  c6 {[%clk 0:03:00]} 6. Qc2 {[%clk 0:02:53]}  Be7 {[%clk 0:02:57]} 7. e3 {[%clk 0:02:53]}  Nbd7 {[%clk 0:02:57]} 8. Bd3 {[%clk 0:02:53]}  Nh5 {[%clk 0:02:57]} 9. Bxe7 {[%clk 0:02:52]}  Qxe7 {[%clk 0:02:58]} 10. Nge2 {[%clk 0:02:49]}  Ndf6 {[%clk 0:02:57]} 11. O-O-O {[%clk 0:02:48]}  g6 {[%clk 0:02:57]} 12. Kb1 {[%clk 0:02:42]}  Ng7 {[%clk 0:02:56]} 13. Ng3 {[%clk 0:02:39]}  h5 {[%clk 0:02:55]} 14. e4 {[%clk 0:02:28]}  dxe4 {[%clk 0:02:55]} 15. Ngxe4 {[%clk 0:02:28]}  Nxe4 {[%clk 0:02:54]} 16. Nxe4 {[%clk 0:02:27]}  Bf5 {[%clk 0:02:49]} 17. f3 {[%clk 0:02:24]}  Bxe4 {[%clk 0:02:47]} 18. fxe4 {[%clk 0:02:20]}  Rd8 {[%clk 0:02:43]} 19. Bc4 {[%clk 0:02:14]}  Ne6 {[%clk 0:02:42]} 20. Qc3 {[%clk 0:02:06]}  O-O {[%clk 0:02:41]} 21. Rhg1 {[%clk 0:01:55]}  Qf6 {[%clk 0:02:14]} 22. Rgf1 {[%clk 0:01:46]}  Qh4 {[%clk 0:02:07]} 23. Qe3 {[%clk 0:01:30]}  Kg7 {[%clk 0:01:23]} 24. Bxe6 {[%clk 0:01:16]}  fxe6 {[%clk 0:01:23]} 25. Rxf8 {[%clk 0:01:08]}  Rxf8 {[%clk 0:01:22]} 26. d5 {[%clk 0:01:05]}  exd5 {[%clk 0:01:19]} 27. exd5 {[%clk 0:01:05]}  cxd5 {[%clk 0:01:19]} 28. Qxa7 {[%clk 0:01:01]}  Qe4+ {[%clk 0:01:12]} 29. Ka1 {[%clk 0:01:01]}  Qxg2 {[%clk 0:01:11]} 30. Qxb7+ {[%clk 0:00:59]}  Rf7 {[%clk 0:01:10]} 31. Qb3 {[%clk 0:00:54]}  Qxh2 {[%clk 0:01:04]} 32. Qxd5 {[%clk 0:00:50]}  h4 {[%clk 0:01:04]} 33. a4 {[%clk 0:00:46]}  Qf4 {[%clk 0:00:41]} 34. Rd4 {[%clk 0:00:38]}  Qf1+ {[%clk 0:00:41]} 35. Ka2 {[%clk 0:00:37]}  h3 {[%clk 0:00:42]} 36. Qe5+ {[%clk 0:00:32]}  Qf6 {[%clk 0:00:40]} 37. Qxf6+ {[%clk 0:00:25]}  Rxf6 {[%clk 0:00:41]} 38. Rh4 {[%clk 0:00:25]}  Rf3 {[%clk 0:00:40]} 39. a5 {[%clk 0:00:25]}  g5 {[%clk 0:00:41]} 40. Rh5 {[%clk 0:00:21]}  Kg6 {[%clk 0:00:41]} 41. Rh8 {[%clk 0:00:20]}  g4 {[%clk 0:00:41]} 42. a6 {[%clk 0:00:19]}  Rf6 {[%clk 0:00:41]} 43. Rg8+ {[%clk 0:00:12]}  Kf5 {[%clk 0:00:36]} 0-1


[Site "https://www.chess.com"]

[Event "Titled Tuesday Blitz February 07 Late 2023"]
[White "Tarhan, Adar"]
[Black "Tyagi, Kushan"]
[WhiteFideId "34544712"]
[BlackFideId "2040069"]
[WhiteElo "2314"]
[BlackElo "2060"]
[Result "0-1"]
[Round "04"]
[TimeControl "180+2"]
[Date "2023.02.07"]
[WhiteClock "0:01:46"]
[BlackClock "0:01:13"]

1. d4 {[%clk 0:03:00]}  Nf6 {[%clk 0:02:55]} 2. Bg5 {[%clk 0:02:58]}  Ne4 {[%clk 0:02:55]} 3. Bf4 {[%clk 0:02:58]}  c5 {[%clk 0:02:55]} 4. f3 {[%clk 0:02:57]}  Nf6 {[%clk 0:02:49]} 5. d5 {[%clk 0:02:56]}  e6 {[%clk 0:02:42]} 6. Nc3 {[%clk 0:02:51]}  d6 {[%clk 0:02:25]} 7. e4 {[%clk 0:02:49]}  exd5 {[%clk 0:02:22]} 8. Nxd5 {[%clk 0:02:48]}  Nxd5 {[%clk 0:02:20]} 9. Qxd5 {[%clk 0:02:47]}  Nc6 {[%clk 0:02:19]} 10. O-O-O {[%clk 0:02:42]}  Be6 {[%clk 0:02:17]} 11. Qd2 {[%clk 0:02:41]}  Qb6 {[%clk 0:02:01]} 12. a3 {[%clk 0:02:37]}  Be7 {[%clk 0:01:56]} 13. Ne2 {[%clk 0:02:36]}  Rd8 {[%clk 0:01:50]} 14. Nc3 {[%clk 0:02:36]}  Nd4 {[%clk 0:01:39]} 15. Be3 {[%clk 0:02:03]}  Bf6 {[%clk 0:01:38]} 16. Bxd4 {[%clk 0:02:00]}  Bxd4 {[%clk 0:01:37]} 17. Nb5 {[%clk 0:02:00]}  Bxb2+ {[%clk 0:01:34]} 18. Kxb2 {[%clk 0:02:01]}  a6 {[%clk 0:01:34]} 19. a4 {[%clk 0:01:52]}  axb5 {[%clk 0:01:33]} 20. Bxb5+ {[%clk 0:01:53]}  Kf8 {[%clk 0:01:28]} 21. c4 {[%clk 0:01:46]}  Bxc4 {[%clk 0:01:20]} 22. Ka3 {[%clk 0:01:46]}  Bxb5 {[%clk 0:01:19]} 23. Rb1 {[%clk 0:01:46]}  Ra8 {[%clk 0:01:13]} 0-1


[Site "https://www.chess.com"]

[Event "Titled Tuesday Blitz February 07 Late 2023"]
[White "Nunez V, Gustavo Eduardo"]
[Black "Defend, Balint"]
[WhiteFideId "4403690"]
[BlackFideId "17004853"]
[WhiteElo "2212"]
[BlackElo "1673"]
[Result "0-1"]
[Round "04"]
[TimeControl "180+2"]
[Date "2023.02.07"]
[WhiteClock "0:00:03"]
[BlackClock "0:01:23"]

1. e4 {[%clk 0:02:55]}  c6 {[%clk 0:02:59]} 2. d4 {[%clk 0:02:54]}  d5 {[%clk 0:02:59]} 3. Nc3 {[%clk 0:02:53]}  dxe4 {[%clk 0:02:57]} 4. Nxe4 {[%clk 0:02:54]}  Nf6 {[%clk 0:02:57]} 5. Nxf6+ {[%clk 0:02:50]}  exf6 {[%clk 0:02:58]} 6. g3 {[%clk 0:02:47]}  Bd6 {[%clk 0:02:54]} 7. Bg2 {[%clk 0:02:48]}  h5 {[%clk 0:02:53]} 8. h3 {[%clk 0:02:47]}  h4 {[%clk 0:02:50]} 9. g4 {[%clk 0:02:47]}  f5 {[%clk 0:02:47]} 10. Qe2+ {[%clk 0:02:42]}  Qe7 {[%clk 0:02:42]} 11. gxf5 {[%clk 0:02:28]}  Bxf5 {[%clk 0:02:38]} 12. Be3 {[%clk 0:02:25]}  Nd7 {[%clk 0:02:36]} 13. O-O-O {[%clk 0:02:25]}  O-O-O {[%clk 0:02:34]} 14. Nf3 {[%clk 0:02:18]}  f6 {[%clk 0:02:27]} 15. Rhe1 {[%clk 0:02:16]}  Qf7 {[%clk 0:02:22]} 16. b3 {[%clk 0:01:56]}  Nb6 {[%clk 0:02:19]} 17. Kb2 {[%clk 0:01:53]}  Bb4 {[%clk 0:02:12]} 18. Bd2 {[%clk 0:01:52]}  Rhe8 {[%clk 0:02:11]} 19. Qf1 {[%clk 0:01:45]}  Bxd2 {[%clk 0:02:07]} 20. Rxd2 {[%clk 0:01:45]}  g5 {[%clk 0:02:05]} 21. Rde2 {[%clk 0:01:43]}  Nd5 {[%clk 0:02:04]} 22. Nd2 {[%clk 0:01:36]}  Nf4 {[%clk 0:02:01]} 23. Rxe8 {[%clk 0:01:36]}  Rxe8 {[%clk 0:02:02]} 24. Rxe8+ {[%clk 0:01:36]}  Qxe8 {[%clk 0:02:03]} 25. Nc4 {[%clk 0:01:30]}  Kc7 {[%clk 0:02:00]} 26. Bf3 {[%clk 0:01:21]}  Bxh3 {[%clk 0:01:59]} 27. Qd1 {[%clk 0:01:16]}  Be6 {[%clk 0:01:57]} 28. Ne3 {[%clk 0:01:10]}  h3 {[%clk 0:01:53]} 29. c4 {[%clk 0:01:03]}  Bd7 {[%clk 0:01:38]} 30. d5 {[%clk 0:01:03]}  Qe5+ {[%clk 0:01:38]} 31. Ka3 {[%clk 0:00:59]}  c5 {[%clk 0:01:38]} 32. Qd2 {[%clk 0:00:52]}  b6 {[%clk 0:01:36]} 33. b4 {[%clk 0:00:42]}  Qd4 {[%clk 0:01:32]} 34. Qe1 {[%clk 0:00:27]}  Nd3 {[%clk 0:01:27]} 35. d6+ {[%clk 0:00:20]}  Kxd6 {[%clk 0:01:26]} 36. bxc5+ {[%clk 0:00:18]}  bxc5 {[%clk 0:01:26]} 37. Qd2 {[%clk 0:00:08]}  Nb4 {[%clk 0:01:24]} 38. Qxd4+ {[%clk 0:00:02]}  cxd4 {[%clk 0:01:25]} 39. Ng4 {[%clk 0:00:02]}  Bc6 {[%clk 0:01:22]} 40. Nxf6 {[%clk 0:00:02]}  Bxf3 {[%clk 0:01:21]} 41. c5+ {[%clk 0:00:03]}  Kxc5 {[%clk 0:01:21]} 42. Nd7+ {[%clk 0:00:03]}  Kb5 {[%clk 0:01:21]} 43. Ne5 {[%clk 0:00:03]}  Be2 {[%clk 0:01:21]} 44. Nd7 {[%clk 0:00:02]}  h2 {[%clk 0:01:21]} 45. Nb8 {[%clk 0:00:02]}  h1=Q {[%clk 0:01:21]} 46. Kb2 {[%clk 0:00:02]}  Qd1 {[%clk 0:01:20]} 47. Nd7 {[%clk 0:00:03]}  Qd2+ {[%clk 0:01:21]} 48. Ka1 {[%clk 0:00:03]}  Qc3+ {[%clk 0:01:21]} 49. Kb1 {[%clk 0:00:03]}  Qc2+ {[%clk 0:01:22]} 50. Ka1 {[%clk 0:00:03]}  Qc1# {[%clk 0:01:23]} 0-1


[Site "https://www.chess.com"]

[Event "Titled Tuesday Blitz February 07 Late 2023"]
[White "Kokoszczynski, Jan"]
[Black "Alfaro, William"]
[WhiteFideId "1174460"]
[BlackFideId "6100457"]
[WhiteElo "2247"]
[BlackElo "2134"]
[Result "1-0"]
[Round "04"]
[TimeControl "180+2"]
[Date "2023.02.07"]
[WhiteClock "0:01:25"]
[BlackClock "0:01:09"]

1. e4 {[%clk 0:02:58]}  c5 {[%clk 0:02:58]} 2. Nf3 {[%clk 0:02:57]}  Nc6 {[%clk 0:02:58]} 3. d4 {[%clk 0:02:54]}  cxd4 {[%clk 0:02:59]} 4. Nxd4 {[%clk 0:02:55]}  g6 {[%clk 0:02:49]} 5. Nc3 {[%clk 0:02:48]}  Bg7 {[%clk 0:02:48]} 6. Be3 {[%clk 0:02:49]}  Nf6 {[%clk 0:02:47]} 7. Bc4 {[%clk 0:02:49]}  d6 {[%clk 0:02:47]} 8. Bb3 {[%clk 0:02:49]}  O-O {[%clk 0:02:43]} 9. h3 {[%clk 0:02:48]}  Bd7 {[%clk 0:02:38]} 10. O-O {[%clk 0:02:44]}  a5 {[%clk 0:02:35]} 11. a4 {[%clk 0:02:39]}  Rc8 {[%clk 0:02:16]} 12. Re1 {[%clk 0:02:29]}  Ne5 {[%clk 0:02:12]} 13. Qe2 {[%clk 0:02:25]}  Qc7 {[%clk 0:02:07]} 14. Rad1 {[%clk 0:02:18]}  Nc4 {[%clk 0:01:59]} 15. Ndb5 {[%clk 0:02:13]}  Nxe3 {[%clk 0:01:43]} 16. Nxc7 {[%clk 0:02:11]}  Nxd1 {[%clk 0:01:43]} 17. Rxd1 {[%clk 0:02:10]}  Rxc7 {[%clk 0:01:42]} 18. Nb5 {[%clk 0:02:03]}  Rc5 {[%clk 0:01:39]} 19. c3 {[%clk 0:01:57]}  Bc6 {[%clk 0:01:38]} 20. Bc2 {[%clk 0:01:41]}  Nh5 {[%clk 0:01:34]} 21. Nd4 {[%clk 0:01:39]}  Bd7 {[%clk 0:01:31]} 22. Qe3 {[%clk 0:01:35]}  Be5 {[%clk 0:01:29]} 23. Bb3 {[%clk 0:01:30]}  Nf4 {[%clk 0:01:18]} 24. Nf3 {[%clk 0:01:29]}  Bc6 {[%clk 0:01:09]} 25. Nxe5 {[%clk 0:01:27]}  dxe5 {[%clk 0:01:09]} 26. Qxc5 {[%clk 0:01:25]} 1-0


[Site "https://www.chess.com"]

[Event "Titled Tuesday Blitz February 07 Late 2023"]
[White "Rangel, Daniel"]
[Black "Bernat, David"]
[WhiteFideId "2124475"]
[BlackFideId "2099225"]
[WhiteElo "2207"]
[BlackElo "1862"]
[Result "0-1"]
[Round "04"]
[TimeControl "180+2"]
[Date "2023.02.07"]
[WhiteClock "0:00:03"]
[BlackClock "0:00:06"]

1. d4 {[%clk 0:02:59]}  Nf6 {[%clk 0:02:58]} 2. c4 {[%clk 0:02:54]}  e6 {[%clk 0:02:58]} 3. Nc3 {[%clk 0:02:55]}  a6 {[%clk 0:02:58]} 4. e4 {[%clk 0:02:52]}  d5 {[%clk 0:02:58]} 5. cxd5 {[%clk 0:02:49]}  exd5 {[%clk 0:02:57]} 6. e5 {[%clk 0:02:50]}  Ne4 {[%clk 0:02:55]} 7. Bd3 {[%clk 0:02:50]}  Nxc3 {[%clk 0:02:56]} 8. bxc3 {[%clk 0:02:50]}  c5 {[%clk 0:02:57]} 9. Ne2 {[%clk 0:02:48]}  Nc6 {[%clk 0:02:56]} 10. O-O {[%clk 0:02:48]}  Bg4 {[%clk 0:02:52]} 11. f3 {[%clk 0:02:46]}  Bh5 {[%clk 0:02:49]} 12. Be3 {[%clk 0:02:45]}  Bg6 {[%clk 0:02:48]} 13. f4 {[%clk 0:02:43]}  Bxd3 {[%clk 0:02:49]} 14. Qxd3 {[%clk 0:02:43]}  cxd4 {[%clk 0:02:47]} 15. cxd4 {[%clk 0:02:44]}  Be7 {[%clk 0:02:36]} 16. f5 {[%clk 0:02:42]}  f6 {[%clk 0:02:31]} 17. Nf4 {[%clk 0:02:41]}  fxe5 {[%clk 0:02:28]} 18. Ne6 {[%clk 0:02:36]}  Qd6 {[%clk 0:02:22]} 19. Nxg7+ {[%clk 0:02:35]}  Kf7 {[%clk 0:02:22]} 20. Ne6 {[%clk 0:02:34]}  Nxd4 {[%clk 0:02:13]} 21. Bxd4 {[%clk 0:02:33]}  exd4 {[%clk 0:02:14]} 22. Qxd4 {[%clk 0:02:25]}  Bf6 {[%clk 0:02:10]} 23. Qg4 {[%clk 0:02:18]}  Bxa1 {[%clk 0:02:02]} 24. Ng5+ {[%clk 0:02:05]}  Kf6 {[%clk 0:01:41]} 25. Rxa1 {[%clk 0:01:49]}  Rag8 {[%clk 0:01:04]} 26. Re1 {[%clk 0:01:22]}  Qc5+ {[%clk 0:00:49]} 27. Kh1 {[%clk 0:01:22]}  Rxg5 {[%clk 0:00:49]} 28. Re6+ {[%clk 0:01:20]}  Kf7 {[%clk 0:00:49]} 29. Qxg5 {[%clk 0:01:19]}  Rf8 {[%clk 0:00:31]} 30. Rf6+ {[%clk 0:01:01]}  Ke8 {[%clk 0:00:25]} 31. Rxf8+ {[%clk 0:00:56]}  Qxf8 {[%clk 0:00:17]} 32. f6 {[%clk 0:00:52]}  Qf7 {[%clk 0:00:14]} 33. Qe5+ {[%clk 0:00:44]}  Kd7 {[%clk 0:00:15]} 34. h3 {[%clk 0:00:39]}  Qe6 {[%clk 0:00:15]} 35. Qg5 {[%clk 0:00:33]}  Qf7 {[%clk 0:00:08]} 36. Qf5+ {[%clk 0:00:33]}  Kd6 {[%clk 0:00:06]} 37. Qc8 {[%clk 0:00:25]}  Qxf6 {[%clk 0:00:05]} 38. Qxb7 {[%clk 0:00:20]}  Qf1+ {[%clk 0:00:05]} 39. Kh2 {[%clk 0:00:20]}  Qf4+ {[%clk 0:00:06]} 40. Kg1 {[%clk 0:00:21]}  Qe3+ {[%clk 0:00:06]} 41. Kf1 {[%clk 0:00:21]}  Qd3+ {[%clk 0:00:06]} 42. Ke1 {[%clk 0:00:20]}  Qc3+ {[%clk 0:00:06]} 43. Kd1 {[%clk 0:00:19]}  Qd3+ {[%clk 0:00:06]} 44. Kc1 {[%clk 0:00:19]}  Qf1+ {[%clk 0:00:05]} 45. Kb2 {[%clk 0:00:19]}  Qb5+ {[%clk 0:00:06]} 46. Qxb5 {[%clk 0:00:15]}  axb5 {[%clk 0:00:07]} 47. g4 {[%clk 0:00:14]}  Ke5 {[%clk 0:00:07]} 48. Kc3 {[%clk 0:00:15]}  Ke4 {[%clk 0:00:07]} 49. Kd2 {[%clk 0:00:10]}  Kf4 {[%clk 0:00:06]} 50. Kd3 {[%clk 0:00:10]}  Kg3 {[%clk 0:00:06]} 51. Kd4 {[%clk 0:00:11]}  Kxh3 {[%clk 0:00:07]} 52. Kc5 {[%clk 0:00:07]}  Kxg4 {[%clk 0:00:06]} 53. Kxb5 {[%clk 0:00:08]}  h5 {[%clk 0:00:06]} 54. a4 {[%clk 0:00:09]}  h4 {[%clk 0:00:07]} 55. a5 {[%clk 0:00:09]}  h3 {[%clk 0:00:08]} 56. a6 {[%clk 0:00:10]}  h2 {[%clk 0:00:08]} 57. a7 {[%clk 0:00:11]}  h1=Q {[%clk 0:00:09]} 58. a8=Q {[%clk 0:00:11]}  Qe4 {[%clk 0:00:09]} 59. Qg8+ {[%clk 0:00:07]}  Kf3 {[%clk 0:00:09]} 60. Kc5 {[%clk 0:00:07]}  Qc4+ {[%clk 0:00:09]} 61. Kd6 {[%clk 0:00:08]}  Ke3 {[%clk 0:00:08]} 62. Qg3+ {[%clk 0:00:07]}  Kd2 {[%clk 0:00:07]} 63. Qf2+ {[%clk 0:00:07]}  Kc3 {[%clk 0:00:08]} 64. Qf6+ {[%clk 0:00:06]}  d4 {[%clk 0:00:08]} 65. Ke5 {[%clk 0:00:04]}  Qc5+ {[%clk 0:00:08]} 66. Ke4 {[%clk 0:00:03]}  Qc4 {[%clk 0:00:06]} 67. Qe5 {[%clk 0:00:03]}  Qd3+ {[%clk 0:00:06]} 68. Kf4 {[%clk 0:00:03]}  Qf1+ {[%clk 0:00:06]} 0-1


[Site "https://www.chess.com"]

[Event "Titled Tuesday Blitz February 07 Late 2023"]
[White "Girsh, Daniel"]
[Black "Rian, Kapriaga"]
[WhiteFideId "30949190"]
[BlackFideId "7103263"]
[WhiteElo "2123"]
[BlackElo "2089"]
[Result "1-0"]
[Round "04"]
[TimeControl "180+2"]
[Date "2023.02.07"]
[WhiteClock "0:00:54"]
[BlackClock "0:00:01"]

1. d4 {[%clk 0:03:00]}  Nf6 {[%clk 0:02:59]} 2. c4 {[%clk 0:03:01]}  e6 {[%clk 0:02:59]} 3. Nf3 {[%clk 0:03:00]}  d5 {[%clk 0:02:58]} 4. g3 {[%clk 0:03:00]}  Bb4+ {[%clk 0:02:54]} 5. Bd2 {[%clk 0:03:00]}  a5 {[%clk 0:02:53]} 6. Bg2 {[%clk 0:03:00]}  dxc4 {[%clk 0:02:51]} 7. O-O {[%clk 0:03:00]}  O-O {[%clk 0:02:46]} 8. a3 {[%clk 0:03:01]}  Be7 {[%clk 0:02:35]} 9. Qc2 {[%clk 0:02:59]}  b6 {[%clk 0:02:35]} 10. Qxc4 {[%clk 0:02:58]}  Ba6 {[%clk 0:02:35]} 11. Qc2 {[%clk 0:02:58]}  Bxe2 {[%clk 0:02:32]} 12. Re1 {[%clk 0:02:58]}  Ba6 {[%clk 0:02:31]} 13. Ne5 {[%clk 0:02:58]}  Ra7 {[%clk 0:02:29]} 14. Nc3 {[%clk 0:02:48]}  Qxd4 {[%clk 0:01:57]} 15. Bf4 {[%clk 0:02:47]}  Bd6 {[%clk 0:01:17]} 16. Rad1 {[%clk 0:02:46]}  Qc5 {[%clk 0:01:16]} 17. h4 {[%clk 0:02:23]}  Nfd7 {[%clk 0:00:55]} 18. b4 {[%clk 0:01:59]}  axb4 {[%clk 0:00:54]} 19. axb4 {[%clk 0:02:00]}  Qxb4 {[%clk 0:00:49]} 20. Be4 {[%clk 0:01:59]}  Nxe5 {[%clk 0:00:36]} 21. Bxh7+ {[%clk 0:01:57]}  Kh8 {[%clk 0:00:35]} 22. Bxe5 {[%clk 0:01:58]}  Nd7 {[%clk 0:00:15]} 23. Bd4 {[%clk 0:01:42]}  c5 {[%clk 0:00:12]} 24. Bxg7+ {[%clk 0:01:39]}  Kxg7 {[%clk 0:00:12]} 25. Rxd6 {[%clk 0:01:39]}  Nf6 {[%clk 0:00:12]} 26. Be4 {[%clk 0:01:35]}  Nxe4 {[%clk 0:00:11]} 27. Rxe4 {[%clk 0:01:35]}  Qa3 {[%clk 0:00:09]} 28. Rg4+ {[%clk 0:01:34]}  Kf6 {[%clk 0:00:09]} 29. Nd5+ {[%clk 0:01:31]}  Ke5 {[%clk 0:00:08]} 30. Ra4 {[%clk 0:01:07]}  Qf3 {[%clk 0:00:05]} 31. Nxb6 {[%clk 0:01:05]}  Kxd6 {[%clk 0:00:03]} 32. Nc4+ {[%clk 0:01:01]}  Bxc4 {[%clk 0:00:03]} 33. Rxa7 {[%clk 0:01:01]}  Bd5 {[%clk 0:00:03]} 34. Ra6+ {[%clk 0:01:00]}  Ke5 {[%clk 0:00:03]} 35. Qb2+ {[%clk 0:01:00]}  Kf5 {[%clk 0:00:02]} 36. Qc2+ {[%clk 0:01:00]}  Kg4 {[%clk 0:00:01]} 37. Kf1 {[%clk 0:00:58]}  Bc4+ {[%clk 0:00:01]} 38. Qxc4+ {[%clk 0:00:57]}  Kh3 {[%clk 0:00:01]} 39. Ke1 {[%clk 0:00:54]} 1-0


[Site "https://www.chess.com"]